[Event "Early-Titled-Tuesday-Blitz-September-12-2023"]
[Site "Chess.com"]
[Date "2023.09.12"]
[Round "9"]
[White "JaloliddinIlkhomi"]
[Black "sokidze"]
[Result "1/2-1/2"]
[WhiteElo "2628"]
[BlackElo "2779"]
[TimeControl "180+1"]
[EndTime "9:45:56 PDT"]
[Termination "Game drawn by stalemate"]

1. Nf3 {[%clk 0:03:00.9]} 1... c5 {[%clk 0:02:58.6]} 2. c3 {[%clk 0:03:00.7]}
2... d5 {[%clk 0:02:56.5]} 3. d4 {[%clk 0:03:00.7]} 3... Nf6 {[%clk 0:02:57.1]}
4. Bf4 {[%clk 0:03:00.7]} 4... e6 {[%clk 0:02:44.9]} 5. e3 {[%clk 0:03:01.2]}
5... Bd6 {[%clk 0:02:45.2]} 6. Bg3 {[%clk 0:03:00.8]} 6... O-O {[%clk
0:02:45.1]} 7. Nbd2 {[%clk 0:03:00.8]} 7... Qc7 {[%clk 0:02:45.4]} 8. Ne5 {[%clk
0:03:00.2]} 8... Nbd7 {[%clk 0:02:41.5]} 9. f4 {[%clk 0:02:59.9]} 9... c4 {[%clk
0:02:41.5]} 10. Be2 {[%clk 0:02:57.9]} 10... b5 {[%clk 0:02:41.2]} 11. O-O
{[%clk 0:02:57.9]} 11... b4 {[%clk 0:02:36.4]} 12. Bh4 {[%clk 0:02:58.1]} 12...
bxc3 {[%clk 0:02:33.1]} 13. bxc3 {[%clk 0:02:59]} 13... Qa5 {[%clk 0:02:05.6]}
14. Qc2 {[%clk 0:02:37.1]} 14... Nb6 {[%clk 0:01:46.6]} 15. e4 {[%clk
0:02:15.6]} 15... Qa4 {[%clk 0:01:23.9]} 16. Bd1 {[%clk 0:02:06.4]} 16... Qxc2
{[%clk 0:01:19.6]} 17. Bxc2 {[%clk 0:02:07.3]} 17... Bb7 {[%clk 0:01:17.5]} 18.
Bxf6 {[%clk 0:01:50.7]} 18... gxf6 {[%clk 0:01:17.3]} 19. Ng4 {[%clk 0:01:51.4]}
19... Kg7 {[%clk 0:01:01.9]} 20. e5 {[%clk 0:01:48.2]} 20... f5 {[%clk
0:00:58.3]} 21. exd6 {[%clk 0:01:35.8]} 21... fxg4 {[%clk 0:00:58.1]} 22. f5
{[%clk 0:01:36.4]} 22... Rad8 {[%clk 0:00:49.6]} 23. Rae1 {[%clk 0:01:10]} 23...
Rxd6 {[%clk 0:00:46.8]} 24. fxe6 {[%clk 0:01:07.9]} 24... Rxe6 {[%clk
0:00:41.4]} 25. Rxe6 {[%clk 0:01:08.3]} 25... fxe6 {[%clk 0:00:42.3]} 26. Rxf8
{[%clk 0:01:08.5]} 26... Kxf8 {[%clk 0:00:42.7]} 27. Bxh7 {[%clk 0:01:09.2]}
27... Kg7 {[%clk 0:00:24.4]} 28. Bc2 {[%clk 0:01:08.5]} 28... Kf6 {[%clk
0:00:24.7]} 29. Kf2 {[%clk 0:01:05.9]} 29... e5 {[%clk 0:00:21.7]} 30. dxe5+
{[%clk 0:01:06.2]} 30... Kxe5 {[%clk 0:00:22.6]} 31. Ke3 {[%clk 0:01:06.8]}
31... Nd7 {[%clk 0:00:15.4]} 32. h3 {[%clk 0:01:07.3]} 32... Nf6 {[%clk
0:00:15.5]} 33. Bd1 {[%clk 0:01:04.7]} 33... Bc8 {[%clk 0:00:13.5]} 34. hxg4
{[%clk 0:00:42]} 34... Bxg4 {[%clk 0:00:13]} 35. Bxg4 {[%clk 0:00:17.2]} 35...
Nxg4+ {[%clk 0:00:13.3]} 36. Ke2 {[%clk 0:00:18.1]} 36... Nf6 {[%clk 0:00:09.9]}
37. Nf3+ {[%clk 0:00:18]} 37... Kf4 {[%clk 0:00:10.3]} 38. Nd2 {[%clk
0:00:15.5]} 38... Kg3 {[%clk 0:00:08.2]} 39. Ke3 {[%clk 0:00:16]} 39... Kxg2
{[%clk 0:00:06.6]} 40. Kd4 {[%clk 0:00:16.6]} 40... Kf2 {[%clk 0:00:05.7]} 41.
Nxc4 {[%clk 0:00:13.1]} 41... dxc4 {[%clk 0:00:05.4]} 42. Kxc4 {[%clk 0:00:14]}
42... Ke3 {[%clk 0:00:05.8]} 43. Kb5 {[%clk 0:00:14.3]} 43... Kd3 {[%clk
0:00:03.1]} 44. c4 {[%clk 0:00:12.9]} 44... Nd7 {[%clk 0:00:02.2]} 45. c5 {[%clk
0:00:12]} 45... Nxc5 {[%clk 0:00:02.5]} 46. Kxc5 {[%clk 0:00:12.5]} 46... Kc3
{[%clk 0:00:02.2]} 47. Kb5 {[%clk 0:00:13]} 47... Kd4 {[%clk 0:00:01.8]} 48. a4
{[%clk 0:00:12.4]} 48... Kd5 {[%clk 0:00:02.3]} 49. a5 {[%clk 0:00:13.1]} 49...
Kd6 {[%clk 0:00:02.5]} 50. Ka6 {[%clk 0:00:14]} 50... Kc7 {[%clk 0:00:03]} 51.
Kxa7 {[%clk 0:00:14.8]} 51... Kc8 {[%clk 0:00:03.9]} 52. a6 {[%clk 0:00:14.6]}
52... Kc7 {[%clk 0:00:04.4]} 53. Ka8 {[%clk 0:00:15.5]} 53... Kc8 {[%clk
0:00:05.3]} 54. a7 {[%clk 0:00:16.3]} 54... Kc7 {[%clk 0:00:06.2]} 1/2-1/2

[Event "Early-Titled-Tuesday-Blitz-September-12-2023"]
[Site "Chess.com"]
[Date "2023.09.12"]
[Round "9"]
[White "Kacparov"]
[Black "Egor_Koshulyan"]
[Result "0-1"]
[WhiteElo "2896"]
[BlackElo "2752"]
[TimeControl "180+1"]
[EndTime "9:45:59 PDT"]
[Termination "Egor_Koshulyan won by checkmate"]

1. e4 {[%clk 0:03:00.9]} 1... c5 {[%clk 0:02:58.8]} 2. Nf3 {[%clk 0:03:01]} 2...
Nc6 {[%clk 0:02:58]} 3. Nc3 {[%clk 0:03:00.8]} 3... Nf6 {[%clk 0:02:58.1]} 4.
Bb5 {[%clk 0:03:01.3]} 4... g5 {[%clk 0:02:58.2]} 5. Bxc6 {[%clk 0:02:54.5]}
5... dxc6 {[%clk 0:02:59.1]} 6. d3 {[%clk 0:02:48.8]} 6... g4 {[%clk 0:02:58.9]}
7. Ne5 {[%clk 0:02:49.2]} 7... Bg7 {[%clk 0:02:54.8]} 8. Nc4 {[%clk 0:02:45]}
8... Be6 {[%clk 0:02:45.4]} 9. Qe2 {[%clk 0:02:42.9]} 9... Qd7 {[%clk
0:02:19.6]} 10. a4 {[%clk 0:02:39.9]} 10... h5 {[%clk 0:02:06.4]} 11. a5 {[%clk
0:02:39.3]} 11... h4 {[%clk 0:02:05.7]} 12. Be3 {[%clk 0:02:38.7]} 12... Bxc4
{[%clk 0:01:18]} 13. dxc4 {[%clk 0:02:39.6]} 13... Qe6 {[%clk 0:01:18.8]} 14.
Bxc5 {[%clk 0:02:37.5]} 14... Nd7 {[%clk 0:01:19]} 15. Bb4 {[%clk 0:02:31.3]}
15... h3 {[%clk 0:01:16.6]} 16. gxh3 {[%clk 0:02:26.8]} 16... Rxh3 {[%clk
0:01:14.5]} 17. O-O-O {[%clk 0:02:20.3]} 17... b6 {[%clk 0:01:05.8]} 18. a6
{[%clk 0:02:13.5]} 18... Ne5 {[%clk 0:00:58.2]} 19. Rhg1 {[%clk 0:02:01.7]}
19... Rxh2 {[%clk 0:00:52.2]} 20. Kb1 {[%clk 0:01:55]} 20... Qf6 {[%clk
0:00:32.5]} 21. Rxg4 {[%clk 0:01:30.7]} 21... Nxg4 {[%clk 0:00:32]} 22. Qxg4
{[%clk 0:01:30.6]} 22... Rd8 {[%clk 0:00:20.9]} 23. Rg1 {[%clk 0:01:22]} 23...
Qxf2 {[%clk 0:00:17.7]} 24. Rc1 {[%clk 0:01:14.3]} 24... Rg2 {[%clk 0:00:18.1]}
25. Qh3 {[%clk 0:01:05.5]} 25... Rh2 {[%clk 0:00:16.4]} 26. Qg4 {[%clk
0:01:03.8]} 26... Rg2 {[%clk 0:00:16.1]} 27. Qh3 {[%clk 0:01:04.3]} 27... Rg3
{[%clk 0:00:15.3]} 28. Qh4 {[%clk 0:00:58.1]} 28... Bf6 {[%clk 0:00:15]} 29. Qh5
{[%clk 0:00:42.3]} 29... c5 {[%clk 0:00:15.4]} 30. Nd5 {[%clk 0:00:39.7]} 30...
cxb4 {[%clk 0:00:12.9]} 31. Nc7+ {[%clk 0:00:33.9]} 31... Kf8 {[%clk 0:00:11.5]}
32. Qh6+ {[%clk 0:00:33.5]} 32... Bg7 {[%clk 0:00:11.3]} 33. Qh5 {[%clk
0:00:23.4]} 33... b3 {[%clk 0:00:09.3]} 34. e5 {[%clk 0:00:18.6]} 34... Rg1
{[%clk 0:00:06.9]} 35. cxb3 {[%clk 0:00:14.6]} 35... Rxc1+ {[%clk 0:00:05.5]}
36. Kxc1 {[%clk 0:00:15.5]} 36... Qe3+ {[%clk 0:00:05.8]} 37. Kb1 {[%clk
0:00:15.8]} 37... Qxe5 {[%clk 0:00:06.7]} 38. Qxe5 {[%clk 0:00:12.6]} 38... Bxe5
{[%clk 0:00:07.6]} 39. Nb5 {[%clk 0:00:13.2]} 39... Bb8 {[%clk 0:00:07.7]} 40.
Kc2 {[%clk 0:00:13.5]} 40... f5 {[%clk 0:00:08.2]} 41. Nc3 {[%clk 0:00:13.9]}
41... f4 {[%clk 0:00:08.5]} 42. Ne4 {[%clk 0:00:14.3]} 42... f3 {[%clk
0:00:09.1]} 43. b4 {[%clk 0:00:14.4]} 43... Rd4 {[%clk 0:00:09.6]} 44. Ng5
{[%clk 0:00:12.5]} 44... f2 {[%clk 0:00:09.1]} 45. Ne6+ {[%clk 0:00:12.7]} 45...
Ke8 {[%clk 0:00:09.4]} 46. Nxd4 {[%clk 0:00:13.6]} 46... f1=Q {[%clk 0:00:10]}
47. b3 {[%clk 0:00:10.8]} 47... Qf2+ {[%clk 0:00:09.8]} 48. Kd3 {[%clk 0:00:11]}
48... Qg3+ {[%clk 0:00:10]} 49. Kc2 {[%clk 0:00:11.3]} 49... Be5 {[%clk
0:00:10.5]} 50. Nb5 {[%clk 0:00:11.1]} 50... Qf2+ {[%clk 0:00:10.9]} 51. Kd3
{[%clk 0:00:11.3]} 51... Qf3+ {[%clk 0:00:11.4]} 52. Kc2 {[%clk 0:00:11.3]}
52... Qe2+ {[%clk 0:00:11.8]} 53. Kc1 {[%clk 0:00:11.8]} 53... Bf4+ {[%clk
0:00:12.1]} 54. Kb1 {[%clk 0:00:12.2]} 54... Qd3+ {[%clk 0:00:12.5]} 55. Kb2
{[%clk 0:00:12.7]} 55... Be5+ {[%clk 0:00:12.2]} 56. Ka3 {[%clk 0:00:12.9]}
56... Qb1 {[%clk 0:00:11.3]} 57. Nxa7 {[%clk 0:00:12.2]} 57... Qa1# {[%clk
0:00:11.5]} 0-1

[Event "Early-Titled-Tuesday-Blitz-September-12-2023"]
[Site "Chess.com"]
[Date "2023.09.12"]
[Round "9"]
[White "mishanick"]
[Black "Sanan_Sjugirov"]
[Result "1-0"]
[WhiteElo "3076"]
[BlackElo "2928"]
[TimeControl "180+1"]
[EndTime "9:46:00 PDT"]
[Termination "mishanick won on time"]

1. d4 {[%clk 0:02:56.1]} 1... Nf6 {[%clk 0:02:59.9]} 2. c4 {[%clk 0:02:56.8]}
2... e6 {[%clk 0:03:00.4]} 3. Nc3 {[%clk 0:02:57.6]} 3... d5 {[%clk 0:03:00.8]}
4. cxd5 {[%clk 0:02:57.3]} 4... exd5 {[%clk 0:03:01.7]} 5. Bg5 {[%clk
0:02:57.8]} 5... c6 {[%clk 0:03:02.4]} 6. e3 {[%clk 0:02:58.5]} 6... h6 {[%clk
0:03:03]} 7. Bh4 {[%clk 0:02:57.6]} 7... Be7 {[%clk 0:03:03.7]} 8. Bd3 {[%clk
0:02:58.1]} 8... O-O {[%clk 0:03:04.1]} 9. Nge2 {[%clk 0:02:57.6]} 9... Re8
{[%clk 0:03:04.8]} 10. O-O {[%clk 0:02:58.1]} 10... Nbd7 {[%clk 0:03:04.9]} 11.
f3 {[%clk 0:02:58.2]} 11... b5 {[%clk 0:03:04]} 12. Bf2 {[%clk 0:02:57.2]} 12...
a6 {[%clk 0:02:51.6]} 13. Rc1 {[%clk 0:02:50.4]} 13... Bb7 {[%clk 0:02:50.7]}
14. Bb1 {[%clk 0:02:49.6]} 14... c5 {[%clk 0:02:37.5]} 15. dxc5 {[%clk
0:02:49.2]} 15... Bxc5 {[%clk 0:02:38]} 16. Nd4 {[%clk 0:02:49.6]} 16... Rc8
{[%clk 0:02:35.8]} 17. Nce2 {[%clk 0:02:46.6]} 17... Ne5 {[%clk 0:02:29.7]} 18.
b3 {[%clk 0:02:36]} 18... Ba3 {[%clk 0:02:15.3]} 19. Rxc8 {[%clk 0:02:35.4]}
19... Qxc8 {[%clk 0:02:16.2]} 20. Nf5 {[%clk 0:02:32.1]} 20... Ng6 {[%clk
0:01:45.8]} 21. Qd4 {[%clk 0:02:16.6]} 21... Bc5 {[%clk 0:01:27.3]} 22. Qb2
{[%clk 0:02:16.2]} 22... Qd8 {[%clk 0:01:22.3]} 23. Rc1 {[%clk 0:02:09.7]} 23...
Bb6 {[%clk 0:01:17.3]} 24. Ned4 {[%clk 0:02:01.1]} 24... Qd7 {[%clk 0:01:02]}
25. h4 {[%clk 0:01:21]} 25... Rc8 {[%clk 0:00:57.8]} 26. Rd1 {[%clk 0:00:56.9]}
26... Qc7 {[%clk 0:00:45.2]} 27. Bg3 {[%clk 0:00:28.2]} 27... Qc3 {[%clk
0:00:40.2]} 28. Qe2 {[%clk 0:00:23]} 28... Bc7 {[%clk 0:00:25.5]} 29. Bf2 {[%clk
0:00:14.8]} 29... Bb8 {[%clk 0:00:20.9]} 30. g4 {[%clk 0:00:14.1]} 30... h5
{[%clk 0:00:17.4]} 31. gxh5 {[%clk 0:00:08.9]} 31... Nxh5 {[%clk 0:00:17.4]} 32.
f4 {[%clk 0:00:09.5]} 32... Nhxf4 {[%clk 0:00:04.2]} 33. exf4 {[%clk 0:00:09.7]}
33... Nxf4 {[%clk 0:00:05.1]} 34. Qg4 {[%clk 0:00:09.9]} 34... g6 {[%clk
0:00:01]} 35. Ne7+ {[%clk 0:00:09.4]} 35... Kg7 {[%clk 0:00:01.7]} 36. Nxc8
{[%clk 0:00:04]} 36... Bxc8 {[%clk 0:00:02.6]} 37. Qf3 {[%clk 0:00:03.7]} 37...
Qc7 {[%clk 0:00:02.6]} 38. Bg3 {[%clk 0:00:03.4]} 38... Nh3+ {[%clk 0:00:01.8]}
39. Kg2 {[%clk 0:00:03.2]} 39... Qb6 {[%clk 0:00:01.7]} 40. Bxb8 {[%clk
0:00:03.2]} 40... Qxb8 {[%clk 0:00:02.6]} 41. Qg3 {[%clk 0:00:03.4]} 41... Qb6
{[%clk 0:00:03]} 42. Nf3 {[%clk 0:00:02.4]} 42... Qe3 {[%clk 0:00:02.8]} 43.
Qe5+ {[%clk 0:00:03]} 43... Qxe5 {[%clk 0:00:03.1]} 44. Nxe5 {[%clk 0:00:03.9]}
44... Nf4+ {[%clk 0:00:03.2]} 45. Kg3 {[%clk 0:00:04.6]} 45... Ne2+ {[%clk
0:00:03.4]} 46. Kf2 {[%clk 0:00:04.9]} 46... Nc3 {[%clk 0:00:04.3]} 47. Rc1
{[%clk 0:00:05.5]} 47... d4 {[%clk 0:00:04.5]} 48. Bd3 {[%clk 0:00:06]} 48...
Bb7 {[%clk 0:00:04.1]} 49. a3 {[%clk 0:00:05.9]} 49... Kf6 {[%clk 0:00:03.8]}
50. Nf3 {[%clk 0:00:06.4]} 1-0

[Event "Early-Titled-Tuesday-Blitz-September-12-2023"]
[Site "Chess.com"]
[Date "2023.09.12"]
[Round "9"]
[White "Mariia89"]
[Black "ElenaPershina"]
[Result "0-1"]
[WhiteElo "1999"]
[BlackElo "2263"]
[TimeControl "180+1"]
[EndTime "9:46:00 PDT"]
[Termination "ElenaPershina won by resignation"]

1. d4 {[%clk 0:03:00]} 1... d5 {[%clk 0:02:59.1]} 2. c4 {[%clk 0:02:56.9]} 2...
c6 {[%clk 0:02:58.1]} 3. e3 {[%clk 0:02:47.9]} 3... Nf6 {[%clk 0:02:57.9]} 4.
Nc3 {[%clk 0:02:37.9]} 4... Bf5 {[%clk 0:02:53.6]} 5. Nf3 {[%clk 0:02:35.7]}
5... e6 {[%clk 0:02:52.4]} 6. Nh4 {[%clk 0:02:33.6]} 6... Be4 {[%clk 0:02:52.8]}
7. Nxe4 {[%clk 0:02:25]} 7... Nxe4 {[%clk 0:02:50.3]} 8. Nf3 {[%clk 0:02:23.8]}
8... Bb4+ {[%clk 0:02:47]} 9. Bd2 {[%clk 0:02:06.3]} 9... Qa5 {[%clk 0:02:39.8]}
10. a3 {[%clk 0:02:02.4]} 10... Bxd2+ {[%clk 0:02:38.4]} 11. Nxd2 {[%clk
0:02:03.2]} 11... Nxd2 {[%clk 0:02:31.5]} 12. Qxd2 {[%clk 0:02:04.1]} 12...
Qxd2+ {[%clk 0:02:31.6]} 13. Kxd2 {[%clk 0:02:05]} 13... Nd7 {[%clk 0:02:31.9]}
14. Bd3 {[%clk 0:02:04.9]} 14... dxc4 {[%clk 0:02:30.9]} 15. Bxc4 {[%clk
0:02:05]} 15... Nb6 {[%clk 0:02:30.6]} 16. Bd3 {[%clk 0:02:05.1]} 16... Ke7
{[%clk 0:02:30.5]} 17. b4 {[%clk 0:02:04.8]} 17... Rhd8 {[%clk 0:02:29.1]} 18.
Ke2 {[%clk 0:02:04.8]} 18... g6 {[%clk 0:02:26.1]} 19. h4 {[%clk 0:02:03.6]}
19... Nd5 {[%clk 0:02:23.8]} 20. Rac1 {[%clk 0:02:02.6]} 20... h5 {[%clk
0:02:20.2]} 21. g3 {[%clk 0:02:02.1]} 21... Rd7 {[%clk 0:02:18.1]} 22. Rc2
{[%clk 0:01:58.3]} 22... Rad8 {[%clk 0:02:17.1]} 23. Rhc1 {[%clk 0:01:58.6]}
23... Kf6 {[%clk 0:02:14]} 24. Be4 {[%clk 0:01:57.3]} 24... e5 {[%clk
0:02:12.2]} 25. dxe5+ {[%clk 0:01:52.2]} 25... Kxe5 {[%clk 0:02:11.3]} 26. Bxd5
{[%clk 0:01:49.4]} 26... Rxd5 {[%clk 0:02:10.6]} 27. Rc5 {[%clk 0:01:44.3]}
27... Ke6 {[%clk 0:02:02]} 28. R1c2 {[%clk 0:01:41.3]} 28... Rxc5 {[%clk
0:01:37.4]} 29. Rxc5 {[%clk 0:01:40.8]} 29... Rd5 {[%clk 0:01:38]} 30. Rxd5
{[%clk 0:01:34.5]} 30... Kxd5 {[%clk 0:01:38.9]} 31. Kd3 {[%clk 0:01:34.5]}
31... b6 {[%clk 0:01:37.7]} 32. e4+ {[%clk 0:01:34.7]} 32... Kd6 {[%clk
0:01:30.5]} 33. f4 {[%clk 0:01:34.7]} 33... c5 {[%clk 0:01:21.4]} 34. Kc4 {[%clk
0:01:21.3]} 34... cxb4 {[%clk 0:01:13.7]} 35. axb4 {[%clk 0:01:20.9]} 35... a6
{[%clk 0:01:11.9]} 36. Kd4 {[%clk 0:00:49.6]} 36... Kc6 {[%clk 0:01:04.3]} 37.
f5 {[%clk 0:00:46.6]} 37... a5 {[%clk 0:00:55.9]} 38. bxa5 {[%clk 0:00:46.2]}
38... bxa5 {[%clk 0:00:56.8]} 39. Ke5 {[%clk 0:00:41.9]} 39... a4 {[%clk
0:00:49.4]} 40. Kf6 {[%clk 0:00:26.5]} 40... a3 {[%clk 0:00:43.2]} 41. Kxf7
{[%clk 0:00:22.6]} 41... gxf5 {[%clk 0:00:42.6]} 42. exf5 {[%clk 0:00:22.2]}
42... a2 {[%clk 0:00:40.9]} 43. f6 {[%clk 0:00:19.2]} 43... a1=Q {[%clk
0:00:41]} 44. Kg6 {[%clk 0:00:18.2]} 44... Kd7 {[%clk 0:00:38.2]} 45. Kxh5
{[%clk 0:00:16.3]} 45... Qxf6 {[%clk 0:00:37.3]} 46. g4 {[%clk 0:00:16]} 46...
Ke7 {[%clk 0:00:34.3]} 47. g5 {[%clk 0:00:15.9]} 47... Qf4 {[%clk 0:00:27.8]}
48. g6 {[%clk 0:00:15]} 48... Kf8 {[%clk 0:00:22.4]} 49. g7+ {[%clk 0:00:14.6]}
49... Kg8 {[%clk 0:00:22.6]} 50. Kg6 {[%clk 0:00:14.8]} 50... Qxh4 {[%clk
0:00:22.5]} 51. Kf5 {[%clk 0:00:14.1]} 51... Kxg7 {[%clk 0:00:21.8]} 0-1

[Event "Early-Titled-Tuesday-Blitz-September-12-2023"]
[Site "Chess.com"]
[Date "2023.09.12"]
[Round "9"]
[White "The_Machine04"]
[Black "TimofeevAr"]
[Result "1-0"]
[WhiteElo "2694"]
[BlackElo "2826"]
[TimeControl "180+1"]
[EndTime "9:46:03 PDT"]
[Termination "The_Machine04 won by resignation"]

1. d4 {[%clk 0:03:00.9]} 1... e6 {[%clk 0:02:59.5]} 2. Nf3 {[%clk 0:03:00.8]}
2... Nf6 {[%clk 0:02:57]} 3. Nbd2 {[%clk 0:03:01.2]} 3... d5 {[%clk 0:02:55.2]}
4. e3 {[%clk 0:03:01.3]} 4... c5 {[%clk 0:02:54.8]} 5. c3 {[%clk 0:03:01.3]}
5... Nc6 {[%clk 0:02:54.2]} 6. Bd3 {[%clk 0:03:01]} 6... Be7 {[%clk 0:02:50.8]}
7. O-O {[%clk 0:02:59.6]} 7... O-O {[%clk 0:02:50.6]} 8. dxc5 {[%clk 0:02:59.9]}
8... Bxc5 {[%clk 0:02:50.2]} 9. b4 {[%clk 0:03:00.5]} 9... Bd6 {[%clk 0:02:49]}
10. Bb2 {[%clk 0:02:59.6]} 10... a6 {[%clk 0:02:48.9]} 11. a3 {[%clk 0:02:59.3]}
11... b5 {[%clk 0:02:48.5]} 12. a4 {[%clk 0:02:59.6]} 12... Rb8 {[%clk
0:02:48.4]} 13. axb5 {[%clk 0:02:59.9]} 13... axb5 {[%clk 0:02:48.4]} 14. Qe2
{[%clk 0:03:00.6]} 14... Qb6 {[%clk 0:02:47.8]} 15. e4 {[%clk 0:03:01.2]} 15...
Be7 {[%clk 0:02:36.6]} 16. e5 {[%clk 0:02:58.9]} 16... Nd7 {[%clk 0:02:35.8]}
17. Nb3 {[%clk 0:02:59.2]} 17... f6 {[%clk 0:02:10.8]} 18. exf6 {[%clk
0:02:59.3]} 18... Nxf6 {[%clk 0:02:10.9]} 19. Nbd4 {[%clk 0:02:59.6]} 19... Nxd4
{[%clk 0:02:09.4]} 20. Nxd4 {[%clk 0:03:00.1]} 20... Bd7 {[%clk 0:02:06.8]} 21.
Ra5 {[%clk 0:02:59.5]} 21... Ne4 {[%clk 0:01:38.1]} 22. Bxe4 {[%clk 0:02:54.2]}
22... dxe4 {[%clk 0:01:37.7]} 23. Qxe4 {[%clk 0:02:54.9]} 23... Bf6 {[%clk
0:01:32.6]} 24. Rfa1 {[%clk 0:02:53.4]} 24... Qd6 {[%clk 0:01:14.6]} 25. Ra6
{[%clk 0:02:50.7]} 25... Qd5 {[%clk 0:01:06]} 26. Qxd5 {[%clk 0:02:45.9]} 26...
exd5 {[%clk 0:01:06.1]} 27. Rd6 {[%clk 0:02:44.6]} 27... Rfd8 {[%clk 0:00:57.4]}
28. Rxd5 {[%clk 0:02:43.2]} 28... Be8 {[%clk 0:00:57.5]} 29. Rxd8 {[%clk
0:02:42.4]} 29... Rxd8 {[%clk 0:00:57.7]} 30. h3 {[%clk 0:02:36.4]} 30... Rc8
{[%clk 0:00:56]} 31. Rc1 {[%clk 0:02:24.3]} 31... Rc4 {[%clk 0:00:50.4]} 32. Rd1
{[%clk 0:02:20.6]} 32... Rc8 {[%clk 0:00:47.7]} 33. Rd3 {[%clk 0:02:13.5]} 33...
Ra8 {[%clk 0:00:46.7]} 34. Rd1 {[%clk 0:01:54.7]} 34... Ra2 {[%clk 0:00:46.2]}
35. Bc1 {[%clk 0:01:54]} 35... Ra1 {[%clk 0:00:45.7]} 36. Re1 {[%clk 0:01:50.2]}
36... Bd7 {[%clk 0:00:37.7]} 37. Bd2 {[%clk 0:01:49.8]} 37... Rxe1+ {[%clk
0:00:36.7]} 38. Bxe1 {[%clk 0:01:50.7]} 38... Bxd4 {[%clk 0:00:36.7]} 39. cxd4
{[%clk 0:01:51.6]} 39... Bc6 {[%clk 0:00:36.3]} 40. f3 {[%clk 0:01:52]} 40...
Kf7 {[%clk 0:00:36.3]} 41. Bg3 {[%clk 0:01:51.3]} 41... Ke6 {[%clk 0:00:36.5]}
42. Kf2 {[%clk 0:01:49.8]} 42... Kd5 {[%clk 0:00:36.7]} 43. Ke3 {[%clk
0:01:50.4]} 43... g6 {[%clk 0:00:36.6]} 44. Bh4 {[%clk 0:01:50]} 44... h5 {[%clk
0:00:35.2]} 45. Be7 {[%clk 0:01:49.6]} 45... Kc4 {[%clk 0:00:35.4]} 46. Bc5
{[%clk 0:01:47.5]} 46... Kd5 {[%clk 0:00:35.6]} 47. Kf4 {[%clk 0:01:47.8]} 47...
Ke6 {[%clk 0:00:36]} 48. Kg5 {[%clk 0:01:47.5]} 48... Kf7 {[%clk 0:00:36.2]} 49.
Bd6 {[%clk 0:01:45.8]} 49... Bd5 {[%clk 0:00:36.2]} 50. Bc5 {[%clk 0:01:42]}
50... Bc6 {[%clk 0:00:36.5]} 51. Kf4 {[%clk 0:01:42.3]} 51... Ke6 {[%clk
0:00:36.1]} 52. g4 {[%clk 0:01:41.3]} 52... Bd5 {[%clk 0:00:33.6]} 53. h4 {[%clk
0:01:37.2]} 53... Bc6 {[%clk 0:00:32.6]} 54. Kg3 {[%clk 0:01:32.2]} 54... Kf7
{[%clk 0:00:31.3]} 55. f4 {[%clk 0:01:31.8]} 55... Bd7 {[%clk 0:00:29.1]} 56. f5
{[%clk 0:01:05]} 56... hxg4 {[%clk 0:00:28.4]} 57. fxg6+ {[%clk 0:00:57.1]}
57... Kxg6 {[%clk 0:00:28.3]} 58. Kf4 {[%clk 0:00:54.5]} 58... Be6 {[%clk
0:00:27.1]} 59. Ke5 {[%clk 0:00:52.8]} 59... Bc8 {[%clk 0:00:26.7]} 60. d5
{[%clk 0:00:51.6]} 60... g3 {[%clk 0:00:26.2]} 61. Kd6 {[%clk 0:00:45.5]} 61...
Bb7 {[%clk 0:00:24.7]} 62. Ke6 {[%clk 0:00:44.5]} 62... Bc8+ {[%clk 0:00:23.1]}
63. Ke7 {[%clk 0:00:44.5]} 63... g2 {[%clk 0:00:23]} 64. d6 {[%clk 0:00:44.7]}
64... Kh5 {[%clk 0:00:23.4]} 65. d7 {[%clk 0:00:31.9]} 65... Bxd7 {[%clk
0:00:23.5]} 66. Kxd7 {[%clk 0:00:32.8]} 1-0